bitfinex/quotes_SOLUSD_20220228
["timestamp","ask_amount","ask_price","bid_price","bid_amount"]
[1646050907594,66.45,90.84,90.77,15.87]
[1646050907996,177.15,90.84,90.77,15.87]
[1646050908194,112.6,90.94,90.77,15.87]
[1646050908195,4.405,90.887,90.771,3.05790801]
[1646050908396,4.402,90.906,90.772,110.7]
[1646050908596,4.402,90.906,90.78,198.31]
[1646050908796,177.15,90.928,90.79,15.87]
[1646050909097,110.7,90.926,90.791,2.33743339]
[1646050909295,110.7,90.926,90.8,198.31]
[1646050909495,110.7,90.926,90.81,15.87]
[1646050909695,110.7,90.926,90.812,2.41821279]
[1646050909894,110.7,90.926,90.813,6.0]
[1646050910296,56.68079906,90.927,90.813,8.74678921]
[1646050910498,56.68079906,90.927,90.815,2.83901656]
[1646050910697,56.68079906,90.927,90.816,6.0]
[1646050910897,56.68079906,90.927,90.83,15.87]
[1646050911197,1.64499497,90.957,90.831,2.53336326]
[1646050911398,4.4,90.958,90.831,27.25916326]
[1646050911599,4.4,90.958,90.832,12.6731265]
[1646050911798,6.05324823,90.995,90.84,198.31]
[1646050911997,6.05324823,90.995,90.841,27.32961465]
[1646050912197,15.87,90.99,90.85,15.87]
[1646050912397,177.15,90.988,90.851,8.5577481]
[1646050912599,177.15,90.988,90.851,53.6042]
[1646050912600,1.8139157,90.987,90.851,53.6042]
[1646050912797,4.399,90.986,90.852,7.23506609]
[1646050912997,4.399,90.986,90.853,6.0]
[1646050913198,4.399,90.993,90.854,4.399]
[1646050913398,110.7,90.992,90.855,6.0]
[1646050913597,5.81154339,90.991,90.87,15.87]
[1646050913797,5.81154339,90.991,90.872,3.02423109]
[1646050913996,1.41254339,90.991,90.873,6.0]
[1646050914597,110.7,90.988,90.873,6.0]
[1646050914797,56.10800043,90.994,90.873,6.0]
[1646050914999,56.10800043,90.994,90.874,2.74678921]
[1646050915201,56.10800043,90.994,90.875,10.398]
[1646050915399,4.398,91.035,90.89,15.87]
[1646050915601,4.397,91.052,90.892,2.94791326]
[1646050915799,4.397,91.052,90.91,198.31]
[1646050916001,4.396,91.061,90.92,15.87]
[1646050916201,4.396,91.061,90.921,54.711329]
[1646050916400,68.11476478,91.059,90.922,2.75922138]
[1646050916600,50.46915989,91.06,90.923,6.0]
[1646050916601,1.36625726,91.051,90.923,6.0]
[1646050916899,4.396,91.05,90.924,2.5299825]
[1646050917101,66.45,91.057,90.925,6.0]
[1646050917300,66.45,91.055,90.925,6.0]
[1646050917501,110.7,91.05,90.924,5.27677171]
[1646050917703,66.45,91.045,90.924,5.27677171]
[1646050917901,4.396,91.044,90.924,5.27677171]
[1646050918102,66.45,91.043,90.924,5.27677171]
[1646050918403,6.24032972,91.042,90.924,5.27677171]
[1646050919203,6.24032972,91.042,90.924,2.5299825]
[1646050919604,110.7,91.039,90.924,2.5299825]
[1646050919807,110.7,91.027,90.924,2.5299825]
[1646050920004,125.62606975,91.023,90.924,2.5299825]
[1646050920209,1.68504371,91.021,90.924,2.5299825]
[1646050920604,4.396,91.02,90.924,2.5299825]
[1646050920805,1.72767913,91.022,90.924,2.5299825]
[1646050921006,4.396,91.022,90.925,2.74678921]
[1646050921207,57.80679405,91.023,90.925,2.74678921]
[1646050921507,57.80679405,91.023,90.926,2.88061012]
[1646050921707,57.80679405,91.023,90.93,15.87]
[1646050922111,4.396,91.048,90.931,2.29241471]
[1646050922326,4.396,91.084,90.932,10.396]
[1646050922527,1.78005626,91.097,90.933,24.2083]
[1646050922730,1.59914612,91.107,90.961,110.7]
[1646050922929,43.56691503,91.106,90.97,15.87]
[1646050923226,43.56691503,91.106,90.972,3.10865179]
[1646050923427,177.15,91.104,90.973,6.0]
[1646050923626,1.56929358,91.103,90.972,3.10865179]
[1646050923827,4.394,91.102,90.973,8.74678921]
[1646050924027,4.394,91.102,90.974,2.74678921]
[1646050924228,1.56929358,91.103,90.975,6.0]
[1646050924427,1.56929358,91.103,90.975,13.5]
[1646050924627,1.56929358,91.103,90.976,7.14078921]
[1646050924826,1.56929358,91.103,90.99,15.87]
[1646050925030,4.393,91.102,90.99,15.87]
[1646050925227,4.393,91.102,90.96,2.74678921]
[1646050925228,4.393,91.079,90.96,18.61678921]
[1646050925432,66.45,91.073,90.94,15.87]
[1646050925628,66.45,91.073,90.952,2.74678921]
[1646050925829,1.6955596,91.072,90.96,13.2]
[1646050926028,1.63436918,91.077,90.96,13.2]
[1646050926229,1.63436918,91.077,90.961,2.74678921]
[1646050926428,59.35088777,91.078,90.961,2.74678921]
[1646050926630,1.56241817,91.077,90.962,6.0]
[1646050927031,1.56241817,91.077,90.963,2.74678921]
[1646050927232,59.35088777,91.078,90.963,2.74678921]
[1646050927435,1.56625458,91.076,90.963,2.74678921]
[1646050927632,1.56625458,91.076,90.96,13.2]
[1646050928235,66.45,91.071,90.96,13.2]
[1646050928435,110.7,91.06,90.96,13.2]
[1646050928636,66.45,91.047,90.96,13.2]
[1646050928837,110.7,91.038,90.947,2.74678921]
[1646050929036,110.7,91.024,90.932,2.74678921]
[1646050929236,110.7,91.012,90.932,2.74678921]
[1646050929438,66.45,91.009,90.93,13.2]
[1646050929636,110.7,91.01,90.93,13.2]
[1646050929637,66.45,91.006,90.93,13.2]
[1646050929936,1.37331843,91.025,90.931,110.7]
[1646050930139,13.2,91.07,90.932,3.0007857]
[1646050930338,1.3873529,91.069,90.933,115.094]
[1646050930539,4.394,91.086,90.934,2.53342046]
[1646050930736,1.60936466,91.105,90.935,115.094]
[1646050930937,110.7,91.102,90.951,110.7]
[1646050931139,66.45,91.099,90.953,115.7]
[1646050931337,66.45,91.093,90.955,110.7]
[1646050931538,111.25163875,91.08,90.956,2.3612842]
[1646050931739,177.15,91.076,90.97,13.2]
[1646050931939,177.15,91.076,90.98,13.2]
[1646050932540,177.15,91.076,90.98,15.94678921]
[1646050932740,177.15,91.076,90.981,2.65377278]
[1646050932941,1.6714784,91.075,90.98,13.2]
[1646050933143,4.394,91.074,90.96,15.94678921]
[1646050933342,1.6714784,91.075,90.96,15.94678921]
[1646050933343,1.6714784,91.075,90.96,2.74678921]
[1646050933542,4.394,91.074,90.95,2.74678921]
[1646050933841,177.15,91.069,90.95,2.74678921]
[1646050934040,177.15,91.069,90.95,15.94678921]
[1646050934241,177.15,91.069,90.951,2.74573106]
[1646050934242,1.80106576,91.068,90.951,2.74573106]
[1646050934441,1.80106576,91.068,90.951,5.09754071]
[1646050934642,4.394,91.067,90.952,2.74678921]
[1646050934842,1.80106576,91.068,90.952,2.74678921]
[1646050935041,4.394,91.067,90.952,2.74678921]
[1646050935648,4.394,91.067,90.933,2.74678921]
[1646050935844,177.15,91.059,90.933,2.74678921]
[1646050936043,232.72087776,91.049,90.89,13.2]
[1646050936245,1.7424893,91.048,90.89,13.2]
[1646050936444,4.397,91.047,90.89,13.2]
[1646050936744,4.397,91.047,90.89,41.24213669]
[1646050936948,4.397,91.047,90.891,2.32586648]
[1646050937745,5.95,91.04,90.891,2.32586648]
[1646050937947,66.45,91.029,90.89,13.2]
[1646050938149,66.45,91.013,90.89,13.2]
[1646050938348,66.45,90.999,90.89,13.2]
[1646050938548,177.15,90.991,90.89,13.2]
[1646050938747,1.47179116,90.99,90.89,13.2]
[1646050942152,181.548,90.989,90.883,47.2938]
[1646050942351,1.78706944,90.988,90.891,28.04213669]
[1646050942551,66.45,90.989,90.892,2.87432102]
[1646050942753,177.15,91.006,90.892,5.62111023]
[1646050942952,177.15,91.006,90.893,2.41934952]
[1646050943152,66.45,91.006,90.893,30.59726928]
[1646050943354,66.45,91.006,90.894,5.08069726]
[1646050943555,110.7,91.001,90.894,11.08069726]
[1646050943753,110.7,90.983,90.894,2.33390805]
[1646050943953,110.7,90.973,90.894,2.33390805]
[1646050944353,66.45,90.97,90.89,38.158]
[1646050945156,110.7,90.965,90.89,38.158]
[1646050945356,110.7,90.963,90.89,38.158]
[1646050945558,55.7533776,90.974,90.89,24.958]
[1646050945559,110.7,90.955,90.89,24.958]
[1646050945859,66.45,90.956,90.883,47.2938]
[1646050946757,1.45065115,90.972,90.883,47.2938]
[1646050947060,110.7,90.962,90.883,47.2938]
[1646050947258,66.45,90.961,90.883,47.2938]
[1646050948259,66.45,90.952,90.863,2.74678921]
[1646050948481,66.45,90.952,90.805,11.49379437]
[1646050948482,110.7,90.947,90.821,49.23834704]
[1646050948679,66.45,90.934,90.826,2.74678921]
[1646050948884,66.45,90.944,90.827,6.0]
[1646050949081,1.39302542,90.943,90.83,13.2]
[1646050949281,110.7,90.931,90.83,13.2]
[1646050949482,66.45,90.93,90.831,8.74678921]
[1646050949690,66.45,90.93,90.831,11.65162052]
[1646050949884,66.45,90.93,90.832,2.74678921]
[1646050950483,1.39302542,90.943,90.833,6.0]
[1646050950885,1.39302542,90.943,90.834,2.74678921]
[1646050951087,66.45,90.94,90.835,6.0]
[1646050951285,1.63200014,90.939,90.835,6.0]
[1646050951484,1.63200014,90.939,90.836,2.74678921]
[1646050951685,45.90701321,90.945,90.85,13.2]
[1646050951884,45.90701321,90.945,90.852,2.3535304]
[1646050952385,45.90701321,90.945,90.853,6.0]
[1646050952585,45.90701321,90.945,90.855,2.88832828]
[1646050952787,68.13207466,90.968,90.861,110.7]
[1646050952985,66.45,90.968,90.864,2.97867791]
[1646050953386,66.45,90.968,90.867,2.64402508]
[1646050953588,66.45,90.968,90.88,13.2]
[1646050953786,66.45,90.966,90.88,13.2]
[1646050953985,66.45,90.966,90.881,2.74678921]
[1646050954185,66.45,90.966,90.881,5.73960362]
[1646050954385,66.45,90.966,90.881,5.06370846]
[1646050954586,66.45,90.966,90.882,2.74678921]
[1646050954786,1.83713617,90.987,90.882,8.40678921]
[1646050954987,23.7448,90.997,90.883,110.7]
[1646050955188,23.7448,90.997,90.885,113.78305406]
[1646050955487,23.7448,90.997,90.9,13.2]
[1646050955686,77.2405,90.998,90.91,13.2]
[1646050955889,49.73974169,90.997,90.911,6.0]
[1646050956090,49.73974169,90.997,90.911,8.58215269]
[1646050956288,49.73974169,90.997,90.911,11.3289419]
[1646050956488,49.73974169,90.997,90.912,2.74678921]
[1646050956688,49.73974169,90.997,90.913,6.0]
[1646050956888,49.73974169,90.997,90.913,13.3]
[1646050957088,49.73974169,90.997,90.914,2.74678921]
[1646050957288,49.73974169,90.997,90.915,6.0]
[1646050957489,49.73974169,90.997,90.92,13.2]
[1646050957691,49.73974169,90.997,90.921,8.72589229]
[1646050957888,66.45,90.996,90.921,8.72589229]
[1646050958090,66.45,90.996,90.92,13.2]
[1646050960188,49.73974169,90.997,90.92,13.2]
[1646050960389,49.73974169,90.997,90.921,2.74678921]
[1646050960589,49.73974169,90.997,90.921,5.32089879]
[1646050961190,66.45,90.996,90.921,2.74678921]
[1646050961589,66.45,90.996,90.92,13.2]
[1646050962990,49.73974169,90.997,90.92,13.2]
[1646050962991,66.45,90.99,90.92,13.2]
[1646050963193,110.7,90.983,90.92,13.2]
[1646050963393,110.7,90.975,90.903,22.872]
[1646050963593,66.45,90.968,90.903,22.872]
[1646050964193,53.86452161,90.969,90.903,22.872]
[1646050964594,53.86452161,90.969,90.904,2.62804122]
[1646050965396,53.86452161,90.969,90.903,22.872]
[1646050966197,66.45,90.968,90.903,22.872]
[1646050966597,53.86452161,90.969,90.903,22.872]
[1646050967396,112.33131709,90.968,90.903,22.872]
[1646050967797,1.55476166,90.967,90.884,24.6219]
[1646050968699,53.86452161,90.969,90.884,24.6219]
[1646050968898,4.399,91.009,90.885,5.31089063]
[1646050969100,3.00394594,91.053,90.885,5.31089063]
[1646050969101,4.398,91.018,90.886,96.5734]
[1646050969301,46.7639,91.048,90.901,110.7]
[1646050969499,1.62641758,91.047,90.907,177.15]
[1646050969699,112.32641758,91.047,90.921,110.7]
[1646050969999,112.32641758,91.047,90.924,3.07016678]
[1646050970000,110.7,91.045,90.924,3.07016678]
[1646050970199,4.396,91.044,90.927,2.82374344]
[1646050970399,4.396,91.044,90.94,13.2]
[1646050970598,110.7,91.045,90.942,2.47786329]
[1646050970899,110.7,91.045,90.943,6.0]
[1646050971103,57.84880036,91.046,90.944,110.7]
[1646050971300,57.84880036,91.046,90.946,110.7]
[1646050971500,57.84880036,91.046,90.96,13.2]
[1646050971898,57.84880036,91.046,90.961,6.0]
[1646050972102,57.84880036,91.046,90.961,8.84817738]
[1646050972303,57.84880036,91.046,90.961,5.59496659]
[1646050972600,57.84880036,91.046,90.962,2.74678921]
[1646050972801,110.7,91.045,90.962,2.74678921]
[1646050973002,57.84880036,91.046,90.962,2.74678921]
[1646050973401,110.7,91.045,90.962,2.74678921]
[1646050974103,57.84880036,91.046,90.962,2.74678921]
[1646050974501,57.84880036,91.046,90.962,11.03678921]
[1646050974902,57.84880036,91.046,90.962,2.74678921]
[1646050975106,57.84880036,91.046,90.96,13.2]
[1646050975302,1.78930496,91.045,90.96,13.2]
[1646050975504,110.7,91.045,90.96,13.2]
[1646050975703,1.46732416,91.044,90.96,13.2]
[1646050979109,1.46732416,91.044,90.961,2.74678921]
[1646050979312,110.7,91.045,90.961,2.74678921]
[1646050979510,110.7,91.045,90.961,5.58718506]
[1646050979711,57.84880036,91.046,90.961,5.58718506]
[1646050979913,57.84880036,91.046,90.962,2.74678921]
[1646050981615,110.7,91.045,90.962,2.74678921]
[1646050982236,1.83123071,91.044,90.962,2.74678921]
[1646050982415,110.7,91.043,90.944,2.74678921]
[1646050982615,4.394,91.042,90.93,2.74678921]
[1646050982816,110.7,91.042,90.942,2.68417892]
[1646050983016,1.78108115,91.041,90.942,5.43096813]
[1646050983217,1.78108115,91.041,90.943,2.74678921]
[1646050984218,4.394,91.04,90.943,2.74678921]
[1646050984617,1.78108115,91.041,90.943,2.74678921]
[1646050984817,112.48108115,91.041,90.943,9.52678921]
[1646050985018,1.38270683,91.04,90.943,9.52678921]
[1646050985718,66.45,91.034,90.943,2.74678921]
[1646050985925,112.44567317,91.031,90.926,2.74678921]
[1646050986122,110.7,91.029,90.92,13.2]
[1646050986419,1.51017785,91.028,90.92,13.2]
[1646050987222,112.21017785,91.028,90.92,13.2]
[1646050987421,1.71158094,91.027,90.92,13.2]
[1646050987821,1.71158094,91.027,90.923,2.74678921]
[1646050988023,110.7,91.02,90.923,2.74678921]
[1646050988221,110.7,91.02,90.908,2.74678921]
[1646050988222,66.45,91.005,90.908,2.74678921]
[1646050988423,177.15,91.002,90.888,47.0411]
[1646050988625,1.55716134,90.999,90.888,47.0411]
[1646050988825,177.15,90.992,90.888,47.0411]
[1646050989126,1.75328136,90.991,90.888,47.0411]
[1646050989530,4.398,90.99,90.874,11.49072801]
[1646050989743,110.7,90.977,90.87,13.2]
[1646050989946,110.7,90.971,90.875,2.74678921]
[1646050990146,1.64957537,90.97,90.875,2.74678921]
[1646050990945,1.64957537,90.97,90.876,26.56880336]
[1646050991147,110.7,90.971,90.88,13.2]
[1646050991546,110.7,90.971,90.881,26.56880336]
[1646050991747,110.7,90.971,90.882,2.33663071]
[1646050991946,110.7,90.971,90.882,30.9478838]
[1646050992148,110.7,90.971,90.883,32.04210142]
[1646050992346,44.96876565,90.972,90.884,2.63562388]
[1646050992546,44.96876565,90.972,90.885,2.51914554]
[1646050992846,44.96876565,90.972,90.89,13.2]
[1646050993447,44.96876565,90.972,90.891,28.61125309]
[1646050993747,44.96876565,90.972,90.892,2.76379418]
[1646050993947,44.96876565,90.972,90.892,5.51058339]
[1646050994247,44.96876565,90.972,90.893,29.31559257]
[1646050994447,1.41550859,90.989,90.894,3.07908246]
[1646050994648,1.73891728,91.0,90.895,2.74244919]
[1646050994846,1.73891728,91.0,90.896,4.398]
[1646050995047,1.73891728,91.0,90.91,13.2]
[1646050995449,110.7,90.998,90.91,13.2]
[1646050995748,1.5061316,90.997,90.91,13.2]
[1646050996149,1.5061316,90.997,90.911,2.74678921]
[1646050997352,66.45,90.993,90.897,26.63178921]
[1646050997550,1.7351335,90.991,90.897,23.885]
[1646050997752,1.7351335,90.991,90.88,13.2]
[1646050997951,1.7351335,90.991,90.877,2.74678921]
[1646050997952,1.3761142,90.989,90.877,2.74678921]
[1646050998152,1.3761142,90.989,90.864,2.74678921]
[1646050998351,4.399,90.988,90.864,2.74678921]
[1646050998550,4.399,90.988,90.865,26.56880336]
[1646050998751,1.3761142,90.989,90.866,2.61489639]
[1646050998951,110.7,90.986,90.88,13.2]
[1646050999153,24.5044,90.987,90.88,13.2]
[1646050999353,110.7,90.986,90.881,26.56880336]
[1646050999552,110.7,90.986,90.882,2.96231258]
[1646050999755,1.54359494,90.985,90.882,23.2684]
[1646050999953,1.54359494,90.985,90.882,26.01518921]
[1646051000154,1.54359494,90.985,90.883,2.74678921]
[1646051001155,4.398,90.984,90.883,2.74678921]
[1646051001755,1.54359494,90.985,90.883,2.74678921]
[1646051001954,66.45,90.977,90.883,2.74678921]
[1646051002155,24.5044,90.987,90.863,2.74678921]
[1646051002156,177.15,90.972,90.863,2.74678921]
[1646051002357,110.7,90.97,90.87,15.85]
[1646051002756,1.65204256,90.969,90.87,42.41880336]
[1646051003355,110.7,90.97,90.871,5.83302076]
[1646051003756,110.7,90.97,90.872,29.31559257]
[1646051003957,110.7,90.97,90.873,2.36893978]
[1646051004157,110.7,90.97,90.873,31.68453235]
[1646051004359,110.7,90.97,90.874,29.4147005]
[1646051004558,110.7,90.97,90.875,2.35180582]
[1646051004759,110.7,90.97,90.89,15.85]
[1646051004960,110.7,90.97,90.891,2.41885058]
[1646051005760,110.7,90.97,90.89,15.85]
[1646051006760,55.25383745,90.971,90.891,2.33158302]
[1646051006961,55.25383745,90.971,90.891,5.07837223]
[1646051007161,55.25383745,90.971,90.891,2.33158302]
[1646051007362,55.25383745,90.971,90.892,2.74678921]
[1646051009766,110.7,90.97,90.892,2.74678921]
[1646051009967,1.66300738,90.969,90.892,2.74678921]
[1646051010173,110.7,90.97,90.892,2.74678921]
[1646051011170,1.6721389,90.969,90.877,2.74678921]
[1646051011968,110.7,90.97,90.877,29.31559257]
[1646051012169,110.7,90.97,90.878,2.6968736]
[1646051012369,1.38197335,90.969,90.88,13.21]
[1646051012870,1.38197335,90.969,90.881,26.56880336]
[1646051013868,1.38197335,90.969,90.881,29.31559257]
[1646051016179,1.38197335,90.969,90.881,2.74678921]
[1646051018483,66.45,90.967,90.865,2.74678921]
[1646051018685,110.7,90.958,90.865,2.74678921]
[1646051018882,177.15,90.942,90.85,4.399]
[1646051019084,110.7,90.94,90.85,4.399]
[1646051019284,1.64259218,90.939,90.85,4.399]
[1646051019482,66.45,90.923,90.85,4.399]
[1646051019682,110.7,90.924,90.85,4.399]
[1646051019683,1.71394553,90.921,90.85,4.399]
[1646051020487,1.71394553,90.921,90.833,2.74678921]
[1646051020787,1.3586469,90.937,90.833,2.74678921]
[1646051020984,1.77602732,90.935,90.833,2.74678921]
[1646051021185,178.58500238,90.932,90.833,2.74678921]
[1646051021590,1.79497994,90.931,90.833,2.74678921]
[1646051022388,110.7,90.927,90.833,2.74678921]
[1646051022588,110.7,90.921,90.833,2.74678921]
[1646051022788,110.7,90.911,90.833,2.74678921]
[1646051022988,110.7,90.909,90.833,2.74678921]
[1646051023189,110.7,90.905,90.82,2.74678921]
[1646051023391,110.7,90.901,90.809,2.74678921]
[1646051023599,110.7,90.893,90.809,2.74678921]
[1646051023800,1.51661802,90.89,90.799,23.5283]
[1646051024200,1.8030054,90.89,90.8,23.9608097]
[1646051024401,4.402,90.907,90.801,2.60753996]
[1646051024601,110.7,90.907,90.801,5.35432917]
[1646051024801,110.7,90.907,90.803,2.79798254]
[1646051025200,110.7,90.907,90.805,3.0897988]
[1646051025501,110.7,90.907,90.806,26.70759891]
[1646051025801,110.7,90.907,90.807,55.42114468]
[1646051026003,110.7,90.907,90.808,2.92545895]
[1646051026201,46.4260384,90.91,90.809,2.90468952]
[1646051026404,46.4260384,90.91,90.81,2.70906464]
[1646051026600,46.4260384,90.91,90.812,2.4701818]
[1646051027001,46.4260384,90.91,90.813,25.86446388]
[1646051027201,47.3141,90.937,90.814,227.702]
[1646051027401,47.3141,90.937,90.817,2.75471155]
[1646051027700,1.73241638,90.968,90.832,2.69991226]
[1646051027907,1.54079734,90.965,90.835,2.40057801]
[1646051028301,1.71755789,90.962,90.835,2.40057801]
[1646051028504,4.4,90.961,90.836,2.74678921]
[1646051028701,4.4,90.961,90.85,13.21]
[1646051029203,1.71755789,90.962,90.851,5.53183787]
[1646051029402,1.71755789,90.962,90.851,2.74678921]
[1646051029702,1.71755789,90.962,90.852,2.74678921]
[1646051030403,110.7,90.961,90.852,2.74678921]
[1646051030601,1.78885269,90.96,90.852,2.74678921]
[1646051034210,1.78885269,90.96,90.854,2.67784629]
[1646051034609,1.78885269,90.96,90.855,2.74678921]
[1646051035209,110.7,90.951,90.853,23.8693]
[1646051035409,1.50089926,90.94,90.853,23.8693]
[1646051037110,110.7,90.949,90.853,23.8693]
[1646051037313,1.47786367,90.948,90.853,23.8693]
[1646051038112,1.47398908,90.962,90.854,26.44047616]
[1646051038311,4.4,90.961,90.854,33.88759891]
[1646051038511,4.4,90.961,90.855,5.77750097]
[1646051038715,157.95621133,90.964,90.86,13.21]
[1646051039313,157.95621133,90.964,90.861,2.84368352]
[1646051039712,157.95621133,90.964,90.862,2.74678921]
[1646051040215,157.95621133,90.964,90.864,2.97333061]
[1646051040416,177.15,90.962,90.864,2.97333061]
[1646051040615,1.68594784,90.961,90.865,22.8492]
[1646051041722,110.7,90.963,90.866,5.79467589]
[1646051042216,157.95621133,90.964,90.87,13.21]
[1646051042417,47.25621133,90.964,90.87,13.21]
[1646051042615,47.25621133,90.964,90.871,2.74678921]
[1646051042816,1.56350597,90.963,90.871,2.74678921]
[1646051043116,47.25621133,90.964,90.871,5.45055515]
[1646051043315,110.7,90.963,90.871,5.45055515]
[1646051045120,47.25621133,90.964,90.871,116.15055515]
[1646051045322,4.399,91.0,90.872,60.15016529]
[1646051045621,1.45619767,91.014,90.874,2.47535775]
[1646051045921,76.9102,91.005,90.875,121.098]
[1646051046123,1.54971481,91.029,90.875,121.098]
[1646051046124,4.398,91.028,90.877,179.57299666]
[1646051046323,110.7,91.026,90.891,110.7]
[1646051046521,110.7,91.026,90.892,3.03260316]
[1646051046723,110.7,91.026,90.894,2.96253594]
[1646051046921,110.7,91.024,90.895,6.0]
[1646051047122,1.75761179,91.023,90.896,4.397]
[1646051047320,177.15,91.022,90.91,13.21]
[1646051047521,1.52035882,91.021,90.911,23.1221]
[1646051047721,110.7,91.022,90.912,3.01222116]
[1646051047922,110.7,91.022,90.913,116.7]
[1646051048122,110.7,91.022,90.915,110.7]
[1646051048323,110.7,91.026,90.931,110.7]
[1646051048523,110.7,91.026,90.94,13.21]
[1646051049025,110.7,91.026,90.941,2.74678921]
[1646051049422,110.7,91.026,90.941,5.78779669]
[1646051049624,56.35337698,91.027,90.941,116.48779669]
[1646051049924,56.35337698,91.027,90.942,11.6589649]
[1646051050224,56.35337698,91.027,90.943,4.396]
[1646051050421,56.35337698,91.027,90.944,6.0]
[1646051050624,56.35337698,91.027,90.944,8.74678921]
[1646051051024,56.35337698,91.027,90.945,2.74678921]
[1646051051224,110.7,91.026,90.945,2.74678921]
[1646051051421,118.07,91.026,90.944,2.3504064]
[1646051051625,1.5576955,91.025,90.943,28.7153]
[1646051052826,56.35337698,91.027,90.944,2.41707965]
[1646051053427,110.7,91.026,90.943,28.7153]
[1646051054430,56.35337698,91.027,90.943,28.7153]
[1646051054629,56.35337698,91.027,90.944,2.55397998]
[1646051055630,110.7,91.026,90.944,2.52235252]
[1646051059934,110.7,91.026,90.943,28.7153]
[1646051060438,110.7,91.02,90.9,13.21]
[1646051060637,110.7,91.009,90.895,49.76026995]
[1646051060835,1.73593548,91.008,90.895,49.76026995]
[1646051061037,1.73593548,91.008,90.896,2.99208379]
[1646051061636,1.73593548,91.008,90.898,113.12645722]
[1646051061834,110.7,91.014,90.91,13.21]
[1646051062035,3.21966751,90.964,90.912,2.36933946]
[1646051062645,3.21966751,90.964,90.912,28.23380334]
[1646051062835,3.21966751,90.964,90.913,3.10291831]
[1646051064335,3.21966751,90.964,90.914,2.74678921]
[1646051064754,3.21966751,90.964,90.916,2.65501796]
[1646051064956,3.21966751,90.964,90.92,13.21]
[1646051065360,3.21966751,90.964,90.917,2.74678921]
[1646051065555,3.21966751,90.964,90.911,24.6975]
[1646051073769,3.21966751,90.964,90.912,2.74678921]
[1646051073965,3.21966751,90.964,90.912,5.62419759]
[1646051074164,3.21966751,90.964,90.913,2.25685056]
[1646051074364,3.21966751,90.964,90.913,5.00363977]
[1646051074566,3.21966751,90.964,90.914,2.74678921]
[1646051075166,3.21966751,90.964,90.911,24.6975]
[1646051076769,3.21966751,90.964,90.912,2.74678921]
[1646051077875,3.21966751,90.964,90.911,24.6975]
[1646051079071,5.0,91.05,90.913,177.15]
[1646051079271,7.66300151,91.152,90.921,110.7]
[1646051079272,1.5067417,91.06,90.921,110.7]
[1646051079471,1.78360912,91.078,90.923,110.7]
[1646051079671,112.31260561,91.076,90.93,198.08]
[1646051079971,110.7,91.069,90.94,15.85]
[1646051080175,110.7,91.061,90.94,15.85]
[1646051080371,110.7,91.037,90.931,6.0]
[1646051080572,110.7,91.031,90.925,6.0]
[1646051080773,1.86292949,91.028,90.926,4.396]
[1646051080974,1.86292949,91.028,90.932,2.74678921]
[1646051082175,4.396,91.027,90.932,2.74678921]
[1646051082777,25.52626945,91.03,90.932,2.74678921]
[1646051082975,1.73396595,91.029,90.932,2.74678921]
[1646051083575,1.39418995,91.028,90.932,2.74678921]
[1646051084177,23.7787,91.03,90.932,2.74678921]
[1646051084476,23.7787,91.03,90.934,2.43098612]
[1646051084676,23.7787,91.03,90.935,4.396]
[1646051084876,23.7787,91.03,90.94,126.55]
[1646051085077,23.7787,91.03,90.941,2.47044201]
[1646051085479,23.7787,91.03,90.941,5.21723122]
[1646051085680,23.7787,91.03,90.942,2.74678921]
[1646051086782,112.09759553,91.029,90.942,2.74678921]
[1646051086981,4.396,91.066,90.941,3.02453218]
[1646051087181,46.2256,91.065,90.943,128.25579313]
[1646051087383,46.2256,91.065,90.945,110.7]